[Event "*** Titled Tuesday Blitz"]
[Site "Chess.com"]
[Date "2020.05.12"]
[Round "2"]
[White "ChessBitl"]
[Black "druskacik"]
[Result "0-1"]
[WhiteElo "2325"]
[BlackElo "2665"]
[TimeControl "180+1"]
[EndTime "10:18:08 PDT"]
[Termination "druskacik won by resignation"]

1. e4 {[%clk 0:03:00.5]} 1... e6 {[%clk 0:02:59.6]} 2. d4 {[%clk 0:03:00.1]}
2... d5 {[%clk 0:02:59.5]} 3. Nd2 {[%clk 0:03:00.6]} 3... Be7 {[%clk 0:02:56.4]}
4. c3 {[%clk 0:02:58.2]} 4... c5 {[%clk 0:02:53]} 5. Ngf3 {[%clk 0:02:55.7]}
5... Nf6 {[%clk 0:02:51.6]} 6. e5 {[%clk 0:02:49.8]} 6... Nfd7 {[%clk
0:02:51.6]} 7. Bd3 {[%clk 0:02:50.3]} 7... Nc6 {[%clk 0:02:49.1]} 8. O-O {[%clk
0:02:50.4]} 8... a5 {[%clk 0:02:49.4]} 9. a4 {[%clk 0:02:49.5]} 9... cxd4 {[%clk
0:02:49.6]} 10. cxd4 {[%clk 0:02:46.9]} 10... Nb4 {[%clk 0:02:50.2]} 11. Be2
{[%clk 0:02:40.9]} 11... O-O {[%clk 0:02:42.1]} 12. Nb3 {[%clk 0:02:40.7]} 12...
Nb6 {[%clk 0:02:26.6]} 13. Be3 {[%clk 0:02:31.6]} 13... Nc4 {[%clk 0:02:21.6]}
14. Qc1 {[%clk 0:02:09.8]} 14... b6 {[%clk 0:02:07.9]} 15. Nbd2 {[%clk
0:02:02.4]} 15... Nxe3 {[%clk 0:01:45.2]} 16. fxe3 {[%clk 0:02:02.1]} 16... Ba6
{[%clk 0:01:46.1]} 17. Bxa6 {[%clk 0:01:56.4]} 17... Nxa6 {[%clk 0:01:43.3]} 18.
Nb3 {[%clk 0:01:48.9]} 18... Rc8 {[%clk 0:01:41.7]} 19. Qd2 {[%clk 0:01:48.6]}
19... Rc4 {[%clk 0:01:34.6]} 20. Qe2 {[%clk 0:01:41.1]} 20... Qd7 {[%clk
0:01:23.4]} 21. Nfd2 {[%clk 0:01:39.8]} 21... Rfc8 {[%clk 0:01:09.1]} 22. Nxc4
{[%clk 0:01:37.2]} 22... dxc4 {[%clk 0:01:10]} 23. Nd2 {[%clk 0:01:34.8]} 23...
Nb4 {[%clk 0:01:01.1]} 24. Rfc1 {[%clk 0:01:34.3]} 24... Nd3 {[%clk 0:00:49.9]}
25. Rc2 {[%clk 0:01:33.8]} 25... Bg5 {[%clk 0:00:43.2]} 26. Nxc4 {[%clk
0:01:23.9]} 26... Nb4 {[%clk 0:00:43.1]} 27. Rd2 {[%clk 0:01:11.9]} 27... Rxc4
{[%clk 0:00:38.8]} 28. Qxc4 {[%clk 0:01:05.8]} 28... Bxe3+ {[%clk 0:00:38.8]}
29. Kh1 {[%clk 0:01:06]} 29... Bxd2 {[%clk 0:00:38]} 30. Rd1 {[%clk 0:00:58.1]}
30... Be3 {[%clk 0:00:37.1]} 31. Qe2 {[%clk 0:00:52.3]} 31... Bg5 {[%clk
0:00:35.3]} 32. Qe4 {[%clk 0:00:47.7]} 32... Qd5 {[%clk 0:00:32.4]} 33. Qg4
{[%clk 0:00:41.4]} 33... Be7 {[%clk 0:00:32.4]} 34. h4 {[%clk 0:00:41]} 34... g6
{[%clk 0:00:31.1]} 35. h5 {[%clk 0:00:40.5]} 35... Qb3 {[%clk 0:00:29.3]} 36. h6
{[%clk 0:00:37.6]} 36... Qxa4 {[%clk 0:00:27.6]} 37. Rf1 {[%clk 0:00:36]} 37...
Qe8 {[%clk 0:00:27.6]} 38. Qf4 {[%clk 0:00:31]} 38... Nd5 {[%clk 0:00:27.3]} 39.
Qf3 {[%clk 0:00:25.2]} 39... Bf8 {[%clk 0:00:27.6]} 40. Qb3 {[%clk 0:00:21]}
40... Bxh6 {[%clk 0:00:26.8]} 41. g3 {[%clk 0:00:17]} 41... Qe7 {[%clk
0:00:26.9]} 42. Kg2 {[%clk 0:00:16.9]} 42... Bf8 {[%clk 0:00:27.1]} 43. Qc4
{[%clk 0:00:15.8]} 43... Ne3+ {[%clk 0:00:26.9]} 0-1

[Event "*** Titled Tuesday Blitz"]
[Site "Chess.com"]
[Date "2020.05.12"]
[Round "2"]
[White "KarstenHansch"]
[Black "NFork"]
[Result "1-0"]
[WhiteElo "2360"]
[BlackElo "1897"]
[TimeControl "180+1"]
[EndTime "10:18:09 PDT"]
[Termination "KarstenHansch won by resignation"]

1. e4 {[%clk 0:02:56.1]} 1... c6 {[%clk 0:02:59.2]} 2. d4 {[%clk 0:02:54.6]}
2... d5 {[%clk 0:02:59.3]} 3. exd5 {[%clk 0:02:55.2]} 3... cxd5 {[%clk
0:02:59.5]} 4. Bd3 {[%clk 0:02:55.8]} 4... Nc6 {[%clk 0:02:59]} 5. c3 {[%clk
0:02:55.3]} 5... Qc7 {[%clk 0:02:59.1]} 6. h3 {[%clk 0:02:54.6]} 6... g6 {[%clk
0:02:57.3]} 7. Ne2 {[%clk 0:02:52.1]} 7... Bf5 {[%clk 0:02:52.6]} 8. Bf4 {[%clk
0:02:49.8]} 8... Qb6 {[%clk 0:02:51.7]} 9. Bxf5 {[%clk 0:02:47.4]} 9... gxf5
{[%clk 0:02:46.8]} 10. Qb3 {[%clk 0:02:46.6]} 10... Bg7 {[%clk 0:02:31.2]} 11.
Qxb6 {[%clk 0:02:43.3]} 11... axb6 {[%clk 0:02:30.8]} 12. Na3 {[%clk 0:02:40.4]}
12... Nf6 {[%clk 0:02:14.3]} 13. f3 {[%clk 0:02:25.4]} 13... O-O {[%clk
0:02:09.4]} 14. g4 {[%clk 0:02:18.1]} 14... fxg4 {[%clk 0:02:06.8]} 15. hxg4
{[%clk 0:02:16.9]} 15... Nd7 {[%clk 0:02:06.4]} 16. Kf2 {[%clk 0:02:11.7]} 16...
e5 {[%clk 0:02:06]} 17. dxe5 {[%clk 0:02:11.3]} 17... Ndxe5 {[%clk 0:02:05.7]}
18. Rad1 {[%clk 0:02:03.1]} 18... Nc4 {[%clk 0:01:47.8]} 19. Nxc4 {[%clk
0:01:39.4]} 19... dxc4 {[%clk 0:01:47.4]} 20. a3 {[%clk 0:01:39.3]} 20... Ne5
{[%clk 0:01:47.6]} 21. Bxe5 {[%clk 0:01:38.1]} 21... Bxe5 {[%clk 0:01:47.2]} 22.
Rh5 {[%clk 0:01:35.2]} 22... Rfe8 {[%clk 0:01:33.8]} 23. Rd7 {[%clk 0:01:22.7]}
23... Ra5 {[%clk 0:01:07.6]} 24. Rxb7 {[%clk 0:01:01.8]} 24... Rb5 {[%clk
0:01:06.7]} 25. f4 {[%clk 0:01:00.2]} 25... Bd4+ {[%clk 0:00:46.1]} 26. cxd4
{[%clk 0:00:55.5]} 26... Rxb2 {[%clk 0:00:44.7]} 27. Re5 {[%clk 0:00:55]} 27...
Rc8 {[%clk 0:00:41.8]} 28. Rg5+ {[%clk 0:00:25.5]} 28... Kh8 {[%clk 0:00:37.3]}
29. Rxf7 {[%clk 0:00:24.3]} 29... Re8 {[%clk 0:00:32.6]} 30. Re5 {[%clk
0:00:23.7]} 30... Rc8 {[%clk 0:00:17.1]} 31. Ree7 {[%clk 0:00:23.8]} 31... c3
{[%clk 0:00:17.3]} 32. Rxh7+ {[%clk 0:00:23.5]} 32... Kg8 {[%clk 0:00:17.4]} 33.
Reg7+ {[%clk 0:00:24.4]} 33... Kf8 {[%clk 0:00:16.9]} 34. Rh8+ {[%clk
0:00:25.3]} 34... Kxg7 {[%clk 0:00:16.9]} 35. Rxc8 {[%clk 0:00:26.2]} 35... c2
{[%clk 0:00:14.9]} 36. d5 {[%clk 0:00:20.3]} 36... Kf7 {[%clk 0:00:12.4]} 37. g5
{[%clk 0:00:20.6]} 37... Ke7 {[%clk 0:00:10.7]} 38. g6 {[%clk 0:00:21]} 38...
Kf6 {[%clk 0:00:10.9]} 39. d6 {[%clk 0:00:20.8]} 1-0

[Event "*** Titled Tuesday Blitz"]
[Site "Chess.com"]
[Date "2020.05.12"]
[Round "2"]
[White "EugeneRougon"]
[Black "Mikhail_Golubev"]
[Result "1-0"]
[WhiteElo "2766"]
[BlackElo "2507"]
[TimeControl "180+1"]
[EndTime "10:18:10 PDT"]
[Termination "EugeneRougon won by resignation"]

1. b3 {[%clk 0:02:59.4]} 1... d6 {[%clk 0:02:59.1]} 2. Bb2 {[%clk 0:02:59.3]}
2... Nd7 {[%clk 0:02:59.7]} 3. f4 {[%clk 0:02:53.5]} 3... Ngf6 {[%clk
0:02:58.4]} 4. Nf3 {[%clk 0:02:53.2]} 4... e5 {[%clk 0:02:53.8]} 5. fxe5 {[%clk
0:02:43.6]} 5... dxe5 {[%clk 0:02:52.4]} 6. Nxe5 {[%clk 0:02:24.2]} 6... Nxe5
{[%clk 0:02:48.5]} 7. Bxe5 {[%clk 0:02:25.1]} 7... Ng4 {[%clk 0:02:31.7]} 8. Bb2
{[%clk 0:01:56.9]} 8... Bd6 {[%clk 0:02:08.3]} 9. g3 {[%clk 0:00:17.1]} 9...
Nxh2 {[%clk 0:02:01.1]} 10. Rg1 {[%clk 0:00:14.1]} 10... Qg5 {[%clk 0:00:50.7]}
11. Qc1 {[%clk 0:00:14]} 11... Bxg3+ {[%clk 0:00:42]} 12. Kd1 {[%clk 0:00:14.3]}
12... Qf4 {[%clk 0:00:36.6]} 13. d3 {[%clk 0:00:11.6]} 13... Qf2 {[%clk
0:00:27]} 14. Rh1 {[%clk 0:00:11.9]} 14... Nxf1 {[%clk 0:00:25.9]} 15. Qg5
{[%clk 0:00:11.8]} 15... Bf4 {[%clk 0:00:18.9]} 16. Qxg7 {[%clk 0:00:09.9]}
16... Ne3+ {[%clk 0:00:18.7]} 17. Kd2 {[%clk 0:00:07.8]} 17... Nc4+ {[%clk
0:00:18.3]} 18. Kc3 {[%clk 0:00:08.2]} 18... Be5+ {[%clk 0:00:17.4]} 19. Qxe5+
{[%clk 0:00:08]} 19... Nxe5 {[%clk 0:00:17.5]} 20. Kd2 {[%clk 0:00:08.9]} 20...
Nf3+ {[%clk 0:00:16.9]} 21. Kd1 {[%clk 0:00:09.6]} 21... Ng1 {[%clk 0:00:16.2]}
22. Bxh8 {[%clk 0:00:05.9]} 22... Qf1+ {[%clk 0:00:14.9]} 23. Kd2 {[%clk
0:00:05.8]} 23... Nf3+ {[%clk 0:00:14.7]} 24. exf3 {[%clk 0:00:06.7]} 24... Qxh1
{[%clk 0:00:15]} 25. Na3 {[%clk 0:00:06.7]} 25... Qxf3 {[%clk 0:00:14.6]} 26.
Re1+ {[%clk 0:00:05.4]} 26... Kd7 {[%clk 0:00:14.7]} 27. Nc4 {[%clk 0:00:04.6]}
27... b5 {[%clk 0:00:14.1]} 28. Ne5+ {[%clk 0:00:04]} 28... Kd6 {[%clk 0:00:14]}
29. Nxf3 {[%clk 0:00:04.9]} 29... Bb7 {[%clk 0:00:14.3]} 30. Be5+ {[%clk
0:00:05.4]} 30... Kd7 {[%clk 0:00:14.1]} 31. Ng5 {[%clk 0:00:05.7]} 31... Re8
{[%clk 0:00:12.5]} 32. Nxh7 {[%clk 0:00:05.7]} 32... f5 {[%clk 0:00:11.6]} 33.
Nf6+ {[%clk 0:00:05.8]} 1-0

[Event "*** Titled Tuesday Blitz"]
[Site "Chess.com"]
[Date "2020.05.12"]
[Round "2"]
[White "today_good_day"]
[Black "Redbandit87"]
[Result "1-0"]
[WhiteElo "2100"]
[BlackElo "2380"]
[TimeControl "180+1"]
[EndTime "10:18:10 PDT"]
[Termination "today_good_day won by checkmate"]

1. e4 {[%clk 0:02:59.9]} 1... e5 {[%clk 0:02:53.1]} 2. Nf3 {[%clk 0:02:59.4]}
2... Nc6 {[%clk 0:02:52.5]} 3. Bb5 {[%clk 0:02:57.4]} 3... Bc5 {[%clk
0:02:50.7]} 4. d3 {[%clk 0:02:55.3]} 4... Qf6 {[%clk 0:02:47.4]} 5. Nc3 {[%clk
0:02:50.2]} 5... Nge7 {[%clk 0:02:46.9]} 6. Be3 {[%clk 0:02:40.6]} 6... Bb6
{[%clk 0:02:45.7]} 7. Qd2 {[%clk 0:02:35.2]} 7... h6 {[%clk 0:02:42.2]} 8. O-O-O
{[%clk 0:02:31]} 8... O-O {[%clk 0:02:39.7]} 9. h4 {[%clk 0:02:15.3]} 9... Nd4
{[%clk 0:02:30]} 10. Bxd4 {[%clk 0:02:08.8]} 10... exd4 {[%clk 0:02:24.3]} 11.
Ne2 {[%clk 0:02:05.3]} 11... c6 {[%clk 0:02:19.6]} 12. Ba4 {[%clk 0:02:03.3]}
12... d6 {[%clk 0:02:18.4]} 13. Nf4 {[%clk 0:01:42.5]} 13... Bg4 {[%clk
0:02:14.1]} 14. Rdg1 {[%clk 0:01:24.6]} 14... Bc7 {[%clk 0:01:48.9]} 15. Nh2
{[%clk 0:01:21.3]} 15... Bd7 {[%clk 0:01:39.8]} 16. Nh5 {[%clk 0:01:08]} 16...
Qg6 {[%clk 0:01:38.1]} 17. g4 {[%clk 0:01:06.3]} 17... d5 {[%clk 0:01:34.3]} 18.
f3 {[%clk 0:01:01.2]} 18... a5 {[%clk 0:01:27]} 19. c3 {[%clk 0:00:55.9]} 19...
dxc3 {[%clk 0:01:23.3]} 20. bxc3 {[%clk 0:00:46.8]} 20... b5 {[%clk 0:01:19.4]}
21. Bc2 {[%clk 0:00:46]} 21... b4 {[%clk 0:01:19.5]} 22. cxb4 {[%clk 0:00:30.2]}
22... d4 {[%clk 0:01:19]} 23. Bb3 {[%clk 0:00:16.4]} 23... axb4 {[%clk
0:01:09.8]} 24. Kb2 {[%clk 0:00:16.2]} 24... Ra5 {[%clk 0:00:57.4]} 25. Ng3
{[%clk 0:00:14]} 25... Rfa8 {[%clk 0:00:49]} 26. Nf5 {[%clk 0:00:13.3]} 26...
Nxf5 {[%clk 0:00:43.8]} 27. gxf5 {[%clk 0:00:12.7]} 27... Qd6 {[%clk 0:00:39.9]}
28. Ng4 {[%clk 0:00:12]} 28... Kf8 {[%clk 0:00:27.9]} 29. e5 {[%clk 0:00:11.5]}
29... Rxe5 {[%clk 0:00:24.6]} 30. Nxe5 {[%clk 0:00:11.1]} 30... Qxe5 {[%clk
0:00:25.5]} 31. Re1 {[%clk 0:00:10.9]} 31... Qxf5 {[%clk 0:00:21.5]} 32. Qxb4+
{[%clk 0:00:09.8]} 32... c5 {[%clk 0:00:21.4]} 33. Qb7 {[%clk 0:00:05.7]} 33...
Qxd3 {[%clk 0:00:16.2]} 34. Qxa8+ {[%clk 0:00:04.8]} 34... Be8 {[%clk
0:00:11.2]} 35. Qxe8# {[%clk 0:00:03.6]} 1-0

[Event "*** Titled Tuesday Blitz"]
[Site "Chess.com"]
[Date "2020.05.12"]
[Round "2"]
[White "Grandmaster2B"]
[Black "anon102030"]
[Result "0-1"]
[WhiteElo "2499"]
[BlackElo "2747"]
[TimeControl "180+1"]
[EndTime "10:18:11 PDT"]
[Termination "anon102030 won by resignation"]

1. e4 {[%clk 0:03:00.9]} 1... e5 {[%clk 0:02:57.7]} 2. Nf3 {[%clk 0:03:00.7]}
2... Nc6 {[%clk 0:02:57.8]} 3. Bb5 {[%clk 0:03:00.7]} 3... Nge7 {[%clk
0:02:57.5]} 4. O-O {[%clk 0:03:00.6]} 4... d6 {[%clk 0:02:57.7]} 5. h3 {[%clk
0:02:57.3]} 5... Bd7 {[%clk 0:02:58]} 6. c3 {[%clk 0:02:57.3]} 6... Ng6 {[%clk
0:02:58.3]} 7. d4 {[%clk 0:02:57.4]} 7... Be7 {[%clk 0:02:58.9]} 8. Nbd2 {[%clk
0:02:56.3]} 8... O-O {[%clk 0:02:58.9]} 9. Re1 {[%clk 0:02:55.2]} 9... Nxd4
{[%clk 0:02:58.8]} 10. Nxd4 {[%clk 0:02:50.3]} 10... exd4 {[%clk 0:02:58.4]} 11.
Bxd7 {[%clk 0:02:50.5]} 11... dxc3 {[%clk 0:02:59.1]} 12. Bf5 {[%clk 0:02:44.7]}
12... cxd2 {[%clk 0:03:00]} 13. Bxd2 {[%clk 0:02:45.2]} 13... Bf6 {[%clk
0:03:00]} 14. Qe2 {[%clk 0:02:38.4]} 14... c6 {[%clk 0:02:57.9]} 15. Red1 {[%clk
0:02:36]} 15... Qb6 {[%clk 0:02:54.6]} 16. Be3 {[%clk 0:02:33.5]} 16... Qc7
{[%clk 0:02:54.2]} 17. Rac1 {[%clk 0:02:18.8]} 17... Rfe8 {[%clk 0:02:53.8]} 18.
b4 {[%clk 0:02:18.6]} 18... a6 {[%clk 0:02:50.2]} 19. a4 {[%clk 0:02:17.1]}
19... Qe7 {[%clk 0:02:39.2]} 20. Qd2 {[%clk 0:02:07]} 20... Rad8 {[%clk
0:02:22.5]} 21. g3 {[%clk 0:01:37.9]} 21... d5 {[%clk 0:02:12.8]} 22. Bb6 {[%clk
0:01:37.6]} 22... Rb8 {[%clk 0:01:48]} 23. exd5 {[%clk 0:01:36.9]} 23... Ne5
{[%clk 0:01:48.6]} 24. d6 {[%clk 0:01:11.1]} 24... Nf3+ {[%clk 0:01:31]} 25. Kg2
{[%clk 0:01:10.9]} 25... Qe5 {[%clk 0:00:54.6]} 26. Qd3 {[%clk 0:01:04.1]} 26...
Ng5 {[%clk 0:00:44.7]} 27. f4 {[%clk 0:00:44.3]} 27... Qb2+ {[%clk 0:00:44.6]}
28. Rd2 {[%clk 0:00:37.2]} 28... Qxc1 {[%clk 0:00:42.7]} 29. d7 {[%clk
0:00:25.2]} 29... Rf8 {[%clk 0:00:20.9]} 30. fxg5 {[%clk 0:00:15.3]} 30... Bxg5
{[%clk 0:00:21.8]} 31. Re2 {[%clk 0:00:15.5]} 31... g6 {[%clk 0:00:21.3]} 32.
Bg4 {[%clk 0:00:07.1]} 32... Qa1 {[%clk 0:00:17.6]} 33. Re8 {[%clk 0:00:04.5]}
33... Rbxe8 {[%clk 0:00:16.7]} 34. dxe8=Q {[%clk 0:00:03.8]} 34... Rxe8 {[%clk
0:00:17.6]} 35. Bd4 {[%clk 0:00:02.5]} 35... Qa2+ {[%clk 0:00:15.2]} 36. Kf3
{[%clk 0:00:02.3]} 36... Qd5+ {[%clk 0:00:15.4]} 37. Kf2 {[%clk 0:00:02.1]}
37... Rd8 {[%clk 0:00:15.1]} 38. Ke2 {[%clk 0:00:01.8]} 38... Qxd4 {[%clk
0:00:14.9]} 0-1

[Event "*** Titled Tuesday Blitz"]
[Site "Chess.com"]
[Date "2020.05.12"]
[Round "2"]
[White "Jenia84"]
[Black "26andrej26"]
[Result "0-1"]
[WhiteElo "2259"]
[BlackElo "2469"]
[TimeControl "180+1"]
[EndTime "10:18:13 PDT"]
[Termination "26andrej26 won by resignation"]

1. Nf3 {[%clk 0:03:00.9]} 1... Nf6 {[%clk 0:02:58.1]} 2. g3 {[%clk 0:03:00.1]}
2... g6 {[%clk 0:02:55.2]} 3. Bg2 {[%clk 0:03:00.4]} 3... Bg7 {[%clk 0:02:54.8]}
4. O-O {[%clk 0:03:00.9]} 4... O-O {[%clk 0:02:54.5]} 5. d4 {[%clk 0:03:00.4]}
5... d6 {[%clk 0:02:30.1]} 6. c4 {[%clk 0:02:57.9]} 6... Nc6 {[%clk 0:02:00.2]}
7. Nc3 {[%clk 0:02:55.2]} 7... Bg4 {[%clk 0:01:56.2]} 8. h3 {[%clk 0:02:53.2]}
8... Bxf3 {[%clk 0:01:55.7]} 9. Bxf3 {[%clk 0:02:53.2]} 9... Nd7 {[%clk
0:01:55.3]} 10. Be3 {[%clk 0:02:48.5]} 10... e5 {[%clk 0:01:48]} 11. d5 {[%clk
0:02:40.6]} 11... Nd4 {[%clk 0:01:46.9]} 12. Bg2 {[%clk 0:02:35.6]} 12... f5
{[%clk 0:01:41.1]} 13. Qd2 {[%clk 0:02:32.8]} 13... a5 {[%clk 0:01:23.2]} 14.
Rac1 {[%clk 0:02:24.6]} 14... a4 {[%clk 0:01:22.9]} 15. Bxd4 {[%clk 0:02:21.2]}
15... exd4 {[%clk 0:01:22]} 16. Nb5 {[%clk 0:02:21.1]} 16... Nc5 {[%clk
0:01:10.7]} 17. Nxd4 {[%clk 0:02:19.4]} 17... f4 {[%clk 0:01:10.9]} 18. gxf4
{[%clk 0:01:55.3]} 18... Qh4 {[%clk 0:00:59.4]} 19. e3 {[%clk 0:01:51.3]} 19...
Rae8 {[%clk 0:00:54.5]} 20. Ne6 {[%clk 0:01:45.6]} 20... Rf5 {[%clk 0:00:48.8]}
21. Nxc5 {[%clk 0:01:39.2]} 21... dxc5 {[%clk 0:00:46.2]} 22. d6 {[%clk
0:01:36.8]} 22... cxd6 {[%clk 0:00:42.5]} 23. Qxd6 {[%clk 0:01:35.9]} 23... Ref8
{[%clk 0:00:15.4]} 24. Rcd1 {[%clk 0:01:25.4]} 24... g5 {[%clk 0:00:15.5]} 25.
Qe6+ {[%clk 0:01:20.7]} 25... Kh8 {[%clk 0:00:15]} 26. Qe7 {[%clk 0:00:56.5]}
26... Qh6 {[%clk 0:00:11.2]} 27. fxg5 {[%clk 0:00:51.5]} 27... Rxg5 {[%clk
0:00:10.9]} 28. Rd7 {[%clk 0:00:51.5]} 28... Rg8 {[%clk 0:00:09.8]} 29. Kh2
{[%clk 0:00:46.7]} 29... Rxg2+ {[%clk 0:00:06.6]} 30. Kxg2 {[%clk 0:00:46]}
30... Bf6+ {[%clk 0:00:06.9]} 31. Kf3 {[%clk 0:00:44.4]} 31... Qxh3+ {[%clk
0:00:05.3]} 32. Ke2 {[%clk 0:00:43.1]} 32... Bxe7 {[%clk 0:00:05.5]} 33. Rxe7
{[%clk 0:00:43.1]} 33... Qg4+ {[%clk 0:00:05.7]} 34. Ke1 {[%clk 0:00:42.4]}
34... Qxc4 {[%clk 0:00:05.1]} 35. Rd7 {[%clk 0:00:40.3]} 35... Qc1+ {[%clk
0:00:05]} 36. Rd1 {[%clk 0:00:39.8]} 36... Qxb2 {[%clk 0:00:05.9]} 37. Rd2
{[%clk 0:00:39.2]} 37... Qc3 {[%clk 0:00:05.8]} 38. Ke2 {[%clk 0:00:39.5]} 38...
Qc4+ {[%clk 0:00:06.2]} 39. Ke1 {[%clk 0:00:39.1]} 39... b5 {[%clk 0:00:06.3]}
40. Rh1 {[%clk 0:00:38.9]} 40... b4 {[%clk 0:00:06.2]} 41. Rd7 {[%clk
0:00:38.4]} 41... Qc1+ {[%clk 0:00:06]} 42. Rd1 {[%clk 0:00:38.1]} 42... Qc3+
{[%clk 0:00:06.5]} 43. Ke2 {[%clk 0:00:38.4]} 43... b3 {[%clk 0:00:06.9]} 44.
Rd7 {[%clk 0:00:38.1]} 44... Qc2+ {[%clk 0:00:06.2]} 45. Kf3 {[%clk 0:00:37.5]}
45... bxa2 {[%clk 0:00:06.3]} 0-1

[Event "*** Titled Tuesday Blitz"]
[Site "Chess.com"]
[Date "2020.05.12"]
[Round "2"]
[White "secretsuperstar7"]
[Black "TheCount"]
[Result "0-1"]
[WhiteElo "2213"]
[BlackElo "2604"]
[TimeControl "180+1"]
[EndTime "10:18:16 PDT"]
[Termination "TheCount won on time"]

1. d4 {[%clk 0:03:00.9]} 1... Nf6 {[%clk 0:02:59.1]} 2. c4 {[%clk 0:02:59.5]}
2... g6 {[%clk 0:02:59]} 3. Nc3 {[%clk 0:02:58.1]} 3... d5 {[%clk 0:02:53.9]} 4.
cxd5 {[%clk 0:02:54.9]} 4... Nxd5 {[%clk 0:02:54.8]} 5. e4 {[%clk 0:02:55]} 5...
Nxc3 {[%clk 0:02:53.3]} 6. bxc3 {[%clk 0:02:55.9]} 6... Bg7 {[%clk 0:02:53.8]}
7. Be3 {[%clk 0:02:55.7]} 7... c5 {[%clk 0:02:52.5]} 8. Nf3 {[%clk 0:02:54.9]}
8... Qa5 {[%clk 0:02:50.3]} 9. Qd2 {[%clk 0:02:44.1]} 9... O-O {[%clk
0:02:27.8]} 10. Be2 {[%clk 0:02:30.1]} 10... Nc6 {[%clk 0:02:24.4]} 11. e5
{[%clk 0:02:24.5]} 11... Rd8 {[%clk 0:02:19.2]} 12. Rd1 {[%clk 0:02:04.1]} 12...
Nxe5 {[%clk 0:02:09]} 13. O-O {[%clk 0:01:59.2]} 13... Nc6 {[%clk 0:01:57.2]}
14. Bh6 {[%clk 0:01:39.6]} 14... cxd4 {[%clk 0:01:55.2]} 15. Bxg7 {[%clk
0:01:38.7]} 15... Kxg7 {[%clk 0:01:54.8]} 16. Qf4 {[%clk 0:01:32]} 16... dxc3
{[%clk 0:01:29.9]} 17. Ne5 {[%clk 0:01:30.9]} 17... Be6 {[%clk 0:01:14.5]} 18.
Nxc6 {[%clk 0:01:24.1]} 18... bxc6 {[%clk 0:01:15.4]} 19. Bg4 {[%clk 0:01:22.8]}
19... Bxg4 {[%clk 0:00:59.3]} 20. Qxg4 {[%clk 0:01:23.7]} 20... Qxa2 {[%clk
0:00:59.5]} 21. Rc1 {[%clk 0:01:14.8]} 21... c2 {[%clk 0:00:42.4]} 22. Qe4
{[%clk 0:01:12.4]} 22... Rd2 {[%clk 0:00:41.9]} 23. Qxc6 {[%clk 0:01:08.8]}
23... Rad8 {[%clk 0:00:38.5]} 24. h3 {[%clk 0:01:03.4]} 24... Qb2 {[%clk
0:00:36]} 25. Kh2 {[%clk 0:00:42.4]} 25... h5 {[%clk 0:00:14.5]} 26. Rfe1 {[%clk
0:00:30.8]} 26... Rxf2 {[%clk 0:00:11.8]} 27. Qc7 {[%clk 0:00:26.3]} 27... Qf6
{[%clk 0:00:09.8]} 28. Rxe7 {[%clk 0:00:21.7]} 28... Rdd2 {[%clk 0:00:07.2]} 29.
Rg1 {[%clk 0:00:18]} 29... c1=Q {[%clk 0:00:06.6]} 30. Rxf7+ {[%clk 0:00:12.4]}
30... Qxf7 {[%clk 0:00:06.4]} 31. Qxc1 {[%clk 0:00:13]} 31... Qf4+ {[%clk
0:00:05.6]} 32. Kh1 {[%clk 0:00:12.5]} 32... Qg3 {[%clk 0:00:05.5]} 33. Qa1+
{[%clk 0:00:11.4]} 33... Kh6 {[%clk 0:00:04.6]} 34. Qh8+ {[%clk 0:00:11.1]}
34... Kg5 {[%clk 0:00:04.5]} 0-1

[Event "*** Titled Tuesday Blitz"]
[Site "Chess.com"]
[Date "2020.05.12"]
[Round "2"]
[White "MariaFominykh"]
[Black "mamonika"]
[Result "1-0"]
[WhiteElo "2373"]
[BlackElo "1963"]
[TimeControl "180+1"]
[EndTime "10:18:16 PDT"]
[Termination "MariaFominykh won by resignation"]

1. d4 {[%clk 0:03:00.9]} 1... d5 {[%clk 0:02:59.3]} 2. c4 {[%clk 0:03:00.1]}
2... c6 {[%clk 0:02:59.6]} 3. Nf3 {[%clk 0:02:58.8]} 3... Nf6 {[%clk 0:02:59.6]}
4. Nc3 {[%clk 0:02:57.2]} 4... e6 {[%clk 0:02:59.4]} 5. e3 {[%clk 0:02:54.7]}
5... Nbd7 {[%clk 0:02:57.8]} 6. b3 {[%clk 0:02:52.6]} 6... Bd6 {[%clk
0:02:56.1]} 7. Bd3 {[%clk 0:02:49.8]} 7... O-O {[%clk 0:02:55.3]} 8. O-O {[%clk
0:02:48.8]} 8... b6 {[%clk 0:02:55.3]} 9. e4 {[%clk 0:02:44.9]} 9... dxe4 {[%clk
0:02:52.6]} 10. Nxe4 {[%clk 0:02:44.1]} 10... Nxe4 {[%clk 0:02:52.8]} 11. Bxe4
{[%clk 0:02:44]} 11... Bb7 {[%clk 0:02:49.2]} 12. Bg5 {[%clk 0:02:27.5]} 12...
Qc7 {[%clk 0:02:31.6]} 13. h3 {[%clk 0:01:53.5]} 13... h6 {[%clk 0:01:49.9]} 14.
Be3 {[%clk 0:01:26.5]} 14... e5 {[%clk 0:01:41.5]} 15. dxe5 {[%clk 0:01:16.6]}
15... Nxe5 {[%clk 0:01:38.5]} 16. Nd4 {[%clk 0:01:02.3]} 16... Rad8 {[%clk
0:01:16.3]} 17. Qh5 {[%clk 0:00:55.9]} 17... Qe7 {[%clk 0:00:45.2]} 18. Nf5
{[%clk 0:00:27.5]} 18... Qf6 {[%clk 0:00:45.3]} 19. Nxd6 {[%clk 0:00:18.9]}
19... Rxd6 {[%clk 0:00:41.8]} 20. Rad1 {[%clk 0:00:16.3]} 20... Rfd8 {[%clk
0:00:38]} 21. Rxd6 {[%clk 0:00:15.6]} 21... Rxd6 {[%clk 0:00:37.1]} 22. Rd1
{[%clk 0:00:15.2]} 22... Rxd1+ {[%clk 0:00:36.8]} 23. Qxd1 {[%clk 0:00:15.2]}
23... Qe7 {[%clk 0:00:34.2]} 24. Qc2 {[%clk 0:00:12.9]} 24... c5 {[%clk
0:00:24.7]} 25. Bxb7 {[%clk 0:00:12.1]} 25... Qxb7 {[%clk 0:00:25.3]} 26. Qf5
{[%clk 0:00:12]} 26... Ng6 {[%clk 0:00:15]} 27. Qg4 {[%clk 0:00:08.6]} 27... Qe7
{[%clk 0:00:13]} 28. Qd1 {[%clk 0:00:07.9]} 28... Kh7 {[%clk 0:00:11]} 29. Qd3
{[%clk 0:00:07.3]} 29... Qf6 {[%clk 0:00:09.1]} 30. g3 {[%clk 0:00:06.5]} 30...
Qf3 {[%clk 0:00:06.6]} 31. h4 {[%clk 0:00:05.3]} 31... Kg8 {[%clk 0:00:04.6]}
32. Qd5 {[%clk 0:00:03.6]} 32... Kh7 {[%clk 0:00:03.9]} 33. Qxf3 {[%clk
0:00:03.3]} 1-0